[Event "Titled Tuesday Blitz April 19 Early 2022"]
[White "Krishna, C R G"]
[Black "Melikhov, Evgeny V."]
[WhiteFideId "5018625"]
[BlackFideId "4122046"]
[WhiteElo "2332"]
[BlackElo "1931"]
[Result "1-0"]
[Round "01"]
[TimeControl "180+1"]
[Date "2022.04.19"]
[WhiteClock "0:01:51"]
[BlackClock "0:00:16"]

1. d4 {[%clk 0:02:52]}  Nf6 {[%clk 0:02:59]} 2. Nf3 {[%clk 0:02:51]}  d5 {[%clk 0:02:57]} 3. c4 {[%clk 0:02:50]}  e6 {[%clk 0:02:57]} 4. g3 {[%clk 0:02:50]}  dxc4 {[%clk 0:02:57]} 5. Bg2 {[%clk 0:02:50]}  Nc6 {[%clk 0:02:57]} 6. O-O {[%clk 0:02:51]}  Rb8 {[%clk 0:02:58]} 7. e3 {[%clk 0:02:48]}  b5 {[%clk 0:02:57]} 8. Qe2 {[%clk 0:02:48]}  Bd6 {[%clk 0:02:54]} 9. b3 {[%clk 0:02:48]}  cxb3 {[%clk 0:02:53]} 10. axb3 {[%clk 0:02:49]}  O-O {[%clk 0:02:52]} 11. Bd2 {[%clk 0:02:48]}  e5 {[%clk 0:02:47]} 12. Rc1 {[%clk 0:02:47]}  Bd7 {[%clk 0:02:32]} 13. Ne1 {[%clk 0:02:41]}  Qe8 {[%clk 0:02:20]} 14. d5 {[%clk 0:02:40]}  Ne7 {[%clk 0:02:20]} 15. e4 {[%clk 0:02:39]}  Nc8 {[%clk 0:01:59]} 16. Nd3 {[%clk 0:02:34]}  h6 {[%clk 0:01:55]} 17. b4 {[%clk 0:02:32]}  Nh7 {[%clk 0:01:54]} 18. Nc5 {[%clk 0:02:31]}  f5 {[%clk 0:01:41]} 19. exf5 {[%clk 0:02:30]}  Bxf5 {[%clk 0:01:40]} 20. Ne4 {[%clk 0:02:28]}  Nf6 {[%clk 0:01:35]} 21. Nxd6 {[%clk 0:02:18]}  cxd6 {[%clk 0:01:32]} 22. Nc3 {[%clk 0:02:17]}  Rb7 {[%clk 0:01:01]} 23. Be3 {[%clk 0:02:12]}  Ng4 {[%clk 0:00:51]} 24. Bd2 {[%clk 0:02:06]}  Qh5 {[%clk 0:00:41]} 25. h3 {[%clk 0:02:03]}  Nf6 {[%clk 0:00:39]} 26. Qxh5 {[%clk 0:02:04]}  Nxh5 {[%clk 0:00:39]} 27. g4 {[%clk 0:02:05]}  Bd3 {[%clk 0:00:28]} 28. gxh5 {[%clk 0:02:03]}  Nb6 {[%clk 0:00:28]} 29. Be3 {[%clk 0:02:02]}  Nc4 {[%clk 0:00:23]} 30. Rxa7 {[%clk 0:02:00]}  Rxa7 {[%clk 0:00:16]} 31. Bxa7 {[%clk 0:01:51]} 1-0


[Site "https://www.chess.com"]

[Event "Titled Tuesday Blitz April 19 Early 2022"]
[White "Lauridsen, Jesper Morch"]
[Black "Ratnakaran, K."]
[WhiteFideId "1401890"]
[BlackFideId "5005507"]
[WhiteElo "2238"]
[BlackElo "2407"]
[Result "1/2-1/2"]
[Round "01"]
[TimeControl "180+1"]
[Date "2022.04.19"]
[WhiteClock "0:00:15"]
[BlackClock "0:01:51"]

1. e4 {[%clk 0:02:58]}  e6 {[%clk 0:02:59]} 2. d4 {[%clk 0:02:55]}  d5 {[%clk 0:03:00]} 3. exd5 {[%clk 0:02:55]}  exd5 {[%clk 0:03:00]} 4. Nf3 {[%clk 0:02:54]}  Nc6 {[%clk 0:03:00]} 5. Bb5 {[%clk 0:02:54]}  a6 {[%clk 0:03:00]} 6. Bxc6+ {[%clk 0:02:53]}  bxc6 {[%clk 0:03:01]} 7. O-O {[%clk 0:02:53]}  Bd6 {[%clk 0:03:01]} 8. Re1+ {[%clk 0:02:53]}  Ne7 {[%clk 0:03:01]} 9. Ne5 {[%clk 0:02:51]}  O-O {[%clk 0:03:00]} 10. Nd2 {[%clk 0:02:50]}  f6 {[%clk 0:03:00]} 11. Nd3 {[%clk 0:02:49]}  a5 {[%clk 0:02:58]} 12. Nf3 {[%clk 0:02:48]}  Ng6 {[%clk 0:02:57]} 13. Nc5 {[%clk 0:02:42]}  Re8 {[%clk 0:02:57]} 14. Rxe8+ {[%clk 0:02:40]}  Qxe8 {[%clk 0:02:57]} 15. Bd2 {[%clk 0:02:37]}  Bg4 {[%clk 0:02:51]} 16. h3 {[%clk 0:02:29]}  Bf5 {[%clk 0:02:50]} 17. c3 {[%clk 0:02:17]}  Qe7 {[%clk 0:02:44]} 18. b4 {[%clk 0:02:12]}  axb4 {[%clk 0:02:43]} 19. cxb4 {[%clk 0:02:12]}  Ra3 {[%clk 0:02:42]} 20. Bc1 {[%clk 0:01:56]}  Rc3 {[%clk 0:02:39]} 21. Bb2 {[%clk 0:01:48]}  Rc2 {[%clk 0:02:39]} 22. Rb1 {[%clk 0:01:35]}  Nf4 {[%clk 0:02:38]} 23. Nh4 {[%clk 0:01:23]}  Be4 {[%clk 0:02:22]} 24. f3 {[%clk 0:00:51]}  Ne2+ {[%clk 0:02:21]} 25. Kf1 {[%clk 0:00:37]}  Ng3+ {[%clk 0:02:13]} 26. Kg1 {[%clk 0:00:36]}  Rxc5 {[%clk 0:02:05]} 27. bxc5 {[%clk 0:00:28]}  Bxb1 {[%clk 0:02:05]} 28. cxd6 {[%clk 0:00:28]}  Qe3+ {[%clk 0:02:05]} 29. Kh2 {[%clk 0:00:28]}  Qf4 {[%clk 0:01:59]} 30. d7 {[%clk 0:00:18]}  Ne4+ {[%clk 0:01:55]} 31. Kg1 {[%clk 0:00:17]}  Qe3+ {[%clk 0:01:54]} 32. Kh2 {[%clk 0:00:15]}  Qf4+ {[%clk 0:01:53]} 33. Kg1 {[%clk 0:00:15]}  Qe3+ {[%clk 0:01:50]} 34. Kh2 {[%clk 0:00:15]}  Qf4+ {[%clk 0:01:51]} 1/2-1/2


[Site "https://www.chess.com"]

[Event "Titled Tuesday Blitz April 19 Early 2022"]
[White "Liyanage, Ranindu Dilshan"]
[Black "Zor, Alber Kadir"]
[WhiteFideId "9915834"]
[BlackFideId "6353169"]
[WhiteElo "1858"]
[BlackElo "1966"]
[Result "1-0"]
[Round "01"]
[TimeControl "180+1"]
[Date "2022.04.19"]
[WhiteClock "0:00:46"]
[BlackClock "0:00:02"]

1. d4 {[%clk 0:03:00]}  Nf6 {[%clk 0:02:55]} 2. Nc3 {[%clk 0:03:00]}  d5 {[%clk 0:02:50]} 3. Bf4 {[%clk 0:03:00]}  a6 {[%clk 0:02:40]} 4. e3 {[%clk 0:02:59]}  e6 {[%clk 0:02:40]} 5. Nf3 {[%clk 0:02:55]}  Bd6 {[%clk 0:02:30]} 6. Bd3 {[%clk 0:02:51]}  O-O {[%clk 0:02:20]} 7. O-O {[%clk 0:02:44]}  c5 {[%clk 0:02:15]} 8. dxc5 {[%clk 0:02:41]}  Bxc5 {[%clk 0:02:06]} 9. e4 {[%clk 0:02:41]}  h6 {[%clk 0:01:41]} 10. Qe2 {[%clk 0:02:32]}  Nc6 {[%clk 0:01:38]} 11. Rad1 {[%clk 0:02:29]}  Re8 {[%clk 0:01:09]} 12. h3 {[%clk 0:02:23]}  b5 {[%clk 0:01:04]} 13. e5 {[%clk 0:02:09]}  Nd7 {[%clk 0:00:59]} 14. Nh2 {[%clk 0:01:53]}  Nd4 {[%clk 0:00:53]} 15. Qg4 {[%clk 0:01:44]}  Kh8 {[%clk 0:00:46]} 16. Qh5 {[%clk 0:01:42]}  Kg8 {[%clk 0:00:14]} 17. Ng4 {[%clk 0:01:36]}  Bf8 {[%clk 0:00:07]} 18. Be3 {[%clk 0:01:10]}  Nf5 {[%clk 0:00:06]} 19. Bxf5 {[%clk 0:01:06]}  exf5 {[%clk 0:00:05]} 20. Qxf5 {[%clk 0:00:48]}  Nxe5 {[%clk 0:00:05]} 21. Qf4 {[%clk 0:00:48]}  Nxg4 {[%clk 0:00:04]} 22. hxg4 {[%clk 0:00:49]}  Be6 {[%clk 0:00:03]} 23. Qf3 {[%clk 0:00:49]}  Qf6 {[%clk 0:00:02]} 24. Nxd5 {[%clk 0:00:46]} 1-0


[Site "https://www.chess.com"]

[Event "Titled Tuesday Blitz April 19 Early 2022"]
[White "Martinez Alcantara, Jose Eduardo"]
[Black "Dixit, Nikhil"]
[WhiteFideId "3805662"]
[BlackFideId "5059534"]
[WhiteElo "2690"]
[BlackElo "2223"]
[Result "1-0"]
[Round "01"]
[TimeControl "180+1"]
[Date "2022.04.19"]
[WhiteClock "0:00:28"]
[BlackClock "0:00:08"]

1. e4 {[%clk 0:03:00]}  g6 {[%clk 0:02:58]} 2. d4 {[%clk 0:03:00]}  Bg7 {[%clk 0:02:58]} 3. c3 {[%clk 0:03:00]}  c5 {[%clk 0:02:56]} 4. dxc5 {[%clk 0:03:00]}  Qc7 {[%clk 0:02:44]} 5. Be3 {[%clk 0:02:56]}  Nf6 {[%clk 0:02:39]} 6. Nd2 {[%clk 0:02:55]}  O-O {[%clk 0:02:33]} 7. h3 {[%clk 0:02:48]}  b6 {[%clk 0:01:40]} 8. cxb6 {[%clk 0:02:46]}  axb6 {[%clk 0:01:41]} 9. Bd3 {[%clk 0:02:43]}  Bb7 {[%clk 0:01:39]} 10. Ngf3 {[%clk 0:02:41]}  d6 {[%clk 0:01:37]} 11. O-O {[%clk 0:02:40]}  Nbd7 {[%clk 0:01:37]} 12. Qc2 {[%clk 0:02:03]}  d5 {[%clk 0:01:20]} 13. Rfe1 {[%clk 0:01:54]}  e5 {[%clk 0:01:02]} 14. Bg5 {[%clk 0:01:41]}  h6 {[%clk 0:00:57]} 15. Bxf6 {[%clk 0:01:39]}  Nxf6 {[%clk 0:00:57]} 16. exd5 {[%clk 0:01:39]}  Nxd5 {[%clk 0:00:56]} 17. Qb3 {[%clk 0:01:25]}  Kh7 {[%clk 0:00:24]} 18. Qc4 {[%clk 0:01:00]}  Qxc4 {[%clk 0:00:20]} 19. Bxc4 {[%clk 0:01:01]}  f5 {[%clk 0:00:19]} 20. Bxd5 {[%clk 0:00:58]}  Bxd5 {[%clk 0:00:19]} 21. Nxe5 {[%clk 0:00:59]}  Rxa2 {[%clk 0:00:19]} 22. Rxa2 {[%clk 0:00:57]}  Bxa2 {[%clk 0:00:20]} 23. Nd7 {[%clk 0:00:49]}  Rd8 {[%clk 0:00:19]} 24. Re7 {[%clk 0:00:49]}  Kg8 {[%clk 0:00:18]} 25. Nf3 {[%clk 0:00:49]}  Bf7 {[%clk 0:00:17]} 26. Nfe5 {[%clk 0:00:43]}  Be8 {[%clk 0:00:15]} 27. f4 {[%clk 0:00:32]}  g5 {[%clk 0:00:13]} 28. g3 {[%clk 0:00:32]}  gxf4 {[%clk 0:00:13]} 29. gxf4 {[%clk 0:00:33]}  Bh5 {[%clk 0:00:12]} 30. Kf2 {[%clk 0:00:29]}  Bxe5 {[%clk 0:00:11]} 31. fxe5 {[%clk 0:00:27]}  Ra8 {[%clk 0:00:10]} 32. Nf6+ {[%clk 0:00:28]}  Kf8 {[%clk 0:00:10]} 33. Rh7 {[%clk 0:00:27]}  Bf7 {[%clk 0:00:08]} 34. Rh8+ {[%clk 0:00:27]}  Kg7 {[%clk 0:00:08]} 35. Rxa8 {[%clk 0:00:28]}  Bd5 {[%clk 0:00:08]} 36. Nxd5 {[%clk 0:00:28]} 1-0


[Site "https://www.chess.com"]

[Event "Titled Tuesday Blitz April 19 Early 2022"]
[White "Mayaud, Raphael"]
[Black "Kosteniuk, Alexandra"]
[WhiteFideId "627151"]
[BlackFideId "4128125"]
[WhiteElo "2191"]
[BlackElo "2469"]
[Result "0-1"]
[Round "01"]
[TimeControl "180+1"]
[Date "2022.04.19"]
[WhiteClock "0:00:12"]
[BlackClock "0:00:51"]

1. d4 {[%clk 0:02:56]}  Nf6 {[%clk 0:02:59]} 2. Bg5 {[%clk 0:02:54]}  d5 {[%clk 0:02:57]} 3. Bxf6 {[%clk 0:02:52]}  gxf6 {[%clk 0:02:56]} 4. c4 {[%clk 0:02:51]}  dxc4 {[%clk 0:02:49]} 5. e3 {[%clk 0:02:47]}  c5 {[%clk 0:02:49]} 6. Bxc4 {[%clk 0:02:42]}  cxd4 {[%clk 0:02:49]} 7. Nc3 {[%clk 0:02:42]}  Nc6 {[%clk 0:02:44]} 8. Qh5 {[%clk 0:02:38]}  e6 {[%clk 0:02:37]} 9. O-O-O {[%clk 0:02:37]}  Bb4 {[%clk 0:02:31]} 10. Nge2 {[%clk 0:02:25]}  Qa5 {[%clk 0:02:25]} 11. Qxa5 {[%clk 0:02:22]}  Bxa5 {[%clk 0:02:24]} 12. exd4 {[%clk 0:02:13]}  Bd7 {[%clk 0:02:17]} 13. d5 {[%clk 0:02:08]}  Ne5 {[%clk 0:02:16]} 14. Bb5 {[%clk 0:01:41]}  O-O-O {[%clk 0:02:09]} 15. dxe6 {[%clk 0:01:26]}  fxe6 {[%clk 0:02:06]} 16. Bxd7+ {[%clk 0:01:25]}  Rxd7 {[%clk 0:02:05]} 17. Rxd7 {[%clk 0:01:24]}  Kxd7 {[%clk 0:02:06]} 18. Rd1+ {[%clk 0:01:20]}  Ke7 {[%clk 0:02:06]} 19. f4 {[%clk 0:00:50]}  Nc4 {[%clk 0:02:03]} 20. Rd4 {[%clk 0:00:43]}  Rc8 {[%clk 0:02:03]} 21. Kb1 {[%clk 0:00:37]}  Bb6 {[%clk 0:02:01]} 22. Rd3 {[%clk 0:00:32]}  Ne3 {[%clk 0:01:51]} 23. g3 {[%clk 0:00:31]}  Ng4 {[%clk 0:01:51]} 24. Na4 {[%clk 0:00:25]}  Nxh2 {[%clk 0:01:35]} 25. Nxb6 {[%clk 0:00:24]}  axb6 {[%clk 0:01:36]} 26. Nd4 {[%clk 0:00:24]}  Rd8 {[%clk 0:01:32]} 27. Kc2 {[%clk 0:00:20]}  Ng4 {[%clk 0:01:32]} 28. Nb5 {[%clk 0:00:18]}  Rxd3 {[%clk 0:01:30]} 29. Kxd3 {[%clk 0:00:19]}  f5 {[%clk 0:01:30]} 30. a4 {[%clk 0:00:18]}  Nf2+ {[%clk 0:01:30]} 31. Ke3 {[%clk 0:00:17]}  Ne4 {[%clk 0:01:28]} 32. g4 {[%clk 0:00:16]}  Nc5 {[%clk 0:01:29]} 33. gxf5 {[%clk 0:00:15]}  exf5 {[%clk 0:01:29]} 34. Nc3 {[%clk 0:00:15]}  Ke6 {[%clk 0:01:23]} 35. b4 {[%clk 0:00:15]}  Nd7 {[%clk 0:01:23]} 36. Nb5 {[%clk 0:00:12]}  Nf8 {[%clk 0:01:08]} 37. Nd4+ {[%clk 0:00:12]}  Kf6 {[%clk 0:01:09]} 38. a5 {[%clk 0:00:12]}  bxa5 {[%clk 0:01:08]} 39. bxa5 {[%clk 0:00:13]}  Ne6 {[%clk 0:01:09]} 40. Nb5 {[%clk 0:00:12]}  h5 {[%clk 0:01:07]} 41. Nd6 {[%clk 0:00:12]}  Nc5 {[%clk 0:01:06]} 42. Nxb7 {[%clk 0:00:09]}  Nxb7 {[%clk 0:01:00]} 43. a6 {[%clk 0:00:09]}  Nd6 {[%clk 0:01:01]} 44. a7 {[%clk 0:00:09]}  Nc4+ {[%clk 0:01:01]} 45. Kd4 {[%clk 0:00:08]}  Nb6 {[%clk 0:01:02]} 46. Kc5 {[%clk 0:00:09]}  Na8 {[%clk 0:01:02]} 47. Kc6 {[%clk 0:00:09]}  h4 {[%clk 0:00:54]} 48. Kb7 {[%clk 0:00:10]}  h3 {[%clk 0:00:55]} 49. Kxa8 {[%clk 0:00:11]}  h2 {[%clk 0:00:56]} 50. Kb7 {[%clk 0:00:11]}  h1=Q+ {[%clk 0:00:56]} 51. Kb8 {[%clk 0:00:12]}  Qb1+ {[%clk 0:00:53]} 52. Ka8 {[%clk 0:00:11]}  Qe4+ {[%clk 0:00:52]} 53. Kb8 {[%clk 0:00:12]}  Qxf4+ {[%clk 0:00:52]} 54. Kb7 {[%clk 0:00:12]}  Qe4+ {[%clk 0:00:51]} 0-1


[Site "https://www.chess.com"]

[Event "Titled Tuesday Blitz April 19 Early 2022"]
[White "Mekhitarian, Krikor Sevag"]
[Black "Vovk, Orest"]
[WhiteFideId "2107660"]
[BlackFideId "14113490"]
[WhiteElo "2598"]
[BlackElo "2203"]
[Result "1-0"]
[Round "01"]
[TimeControl "180+1"]
[Date "2022.04.19"]
[WhiteClock "0:00:05"]
[BlackClock "0:00:10"]

1. e4 {[%clk 0:02:59]}  g5 {[%clk 0:02:56]} 2. d4 {[%clk 0:02:58]}  h6 {[%clk 0:02:55]} 3. Nc3 {[%clk 0:02:57]}  Bg7 {[%clk 0:02:55]} 4. h4 {[%clk 0:02:54]}  g4 {[%clk 0:02:54]} 5. h5 {[%clk 0:02:54]}  c5 {[%clk 0:02:53]} 6. dxc5 {[%clk 0:02:53]}  Bxc3+ {[%clk 0:02:49]} 7. bxc3 {[%clk 0:02:52]}  Nc6 {[%clk 0:02:45]} 8. Qxg4 {[%clk 0:02:47]}  Nf6 {[%clk 0:02:45]} 9. Qg7 {[%clk 0:02:40]}  Rg8 {[%clk 0:02:36]} 10. Qxh6 {[%clk 0:02:39]}  Qa5 {[%clk 0:02:35]} 11. Ne2 {[%clk 0:02:09]}  Nxe4 {[%clk 0:02:17]} 12. Qe3 {[%clk 0:02:03]}  Nxc5 {[%clk 0:02:09]} 13. h6 {[%clk 0:02:01]}  d6 {[%clk 0:02:00]} 14. h7 {[%clk 0:02:01]}  Rh8 {[%clk 0:02:00]} 15. Bd2 {[%clk 0:01:59]}  Bf5 {[%clk 0:01:35]} 16. c4 {[%clk 0:02:00]}  Qa4 {[%clk 0:01:26]} 17. Nc3 {[%clk 0:01:43]}  Qxc2 {[%clk 0:01:15]} 18. Rc1 {[%clk 0:01:42]}  Nd3+ {[%clk 0:01:13]} 19. Bxd3 {[%clk 0:01:42]}  Qxd3 {[%clk 0:01:14]} 20. Nd5 {[%clk 0:01:40]}  Qxe3+ {[%clk 0:01:07]} 21. Bxe3 {[%clk 0:01:19]}  Kd7 {[%clk 0:01:04]} 22. c5 {[%clk 0:01:19]}  Rxh7 {[%clk 0:00:58]} 23. Rxh7 {[%clk 0:01:17]}  Bxh7 {[%clk 0:00:59]} 24. cxd6 {[%clk 0:01:17]}  Be4 {[%clk 0:00:43]} 25. Nc3 {[%clk 0:00:45]}  Bxg2 {[%clk 0:00:41]} 26. dxe7 {[%clk 0:00:46]}  Kxe7 {[%clk 0:00:39]} 27. Ke2 {[%clk 0:00:42]}  Rg8 {[%clk 0:00:29]} 28. Rb1 {[%clk 0:00:41]}  b6 {[%clk 0:00:26]} 29. Rb5 {[%clk 0:00:41]}  Ke6 {[%clk 0:00:17]} 30. Rh5 {[%clk 0:00:31]}  Rg6 {[%clk 0:00:13]} 31. Rh8 {[%clk 0:00:30]}  f5 {[%clk 0:00:12]} 32. Rf8 {[%clk 0:00:28]}  Be4 {[%clk 0:00:10]} 33. Re8+ {[%clk 0:00:21]}  Kd7 {[%clk 0:00:09]} 34. Rh8 {[%clk 0:00:19]}  Re6 {[%clk 0:00:09]} 35. Kd2 {[%clk 0:00:18]}  Rd6+ {[%clk 0:00:08]} 36. Kc1 {[%clk 0:00:18]}  Rd3 {[%clk 0:00:08]} 37. Ne2 {[%clk 0:00:19]}  Bf3 {[%clk 0:00:07]} 38. Nf4 {[%clk 0:00:18]}  Rd1+ {[%clk 0:00:07]} 39. Kc2 {[%clk 0:00:19]}  Rd6 {[%clk 0:00:08]} 40. Rh7+ {[%clk 0:00:19]}  Kc8 {[%clk 0:00:08]} 41. Rg7 {[%clk 0:00:18]}  Be4+ {[%clk 0:00:08]} 42. Kc3 {[%clk 0:00:18]}  Nd8 {[%clk 0:00:09]} 43. Rxa7 {[%clk 0:00:13]}  Ne6 {[%clk 0:00:08]} 44. Ng6 {[%clk 0:00:12]}  Rc6+ {[%clk 0:00:08]} 45. Kd2 {[%clk 0:00:12]}  Kb8 {[%clk 0:00:08]} 46. Rh7 {[%clk 0:00:09]}  Nc5 {[%clk 0:00:08]} 47. Ne5 {[%clk 0:00:07]}  Rd6+ {[%clk 0:00:08]} 48. Kc3 {[%clk 0:00:08]}  Rd5 {[%clk 0:00:08]} 49. Bf4 {[%clk 0:00:07]}  Ka8 {[%clk 0:00:06]} 50. a3 {[%clk 0:00:05]}  Nb7 {[%clk 0:00:05]} 51. Rh6 {[%clk 0:00:03]}  Rc5+ {[%clk 0:00:05]} 52. Kd2 {[%clk 0:00:03]}  Ka7 {[%clk 0:00:06]} 53. Nf7 {[%clk 0:00:02]}  Rc2+ {[%clk 0:00:06]} 54. Ke3 {[%clk 0:00:02]}  Ra2 {[%clk 0:00:07]} 55. Kd4 {[%clk 0:00:02]}  Ka6 {[%clk 0:00:08]} 56. Be3 {[%clk 0:00:03]}  Nc5 {[%clk 0:00:08]} 57. Ke5 {[%clk 0:00:04]}  Rxa3 {[%clk 0:00:08]} 58. Bxc5 {[%clk 0:00:04]}  Kb5 {[%clk 0:00:08]} 59. Bxa3 {[%clk 0:00:03]}  Ka4 {[%clk 0:00:08]} 60. Bc1 {[%clk 0:00:04]}  b5 {[%clk 0:00:08]} 61. Nd6 {[%clk 0:00:04]}  b4 {[%clk 0:00:09]} 62. Nxe4 {[%clk 0:00:04]}  fxe4 {[%clk 0:00:10]} 63. Kxe4 {[%clk 0:00:05]} 1-0


[Site "https://www.chess.com"]

[Event "Titled Tuesday Blitz April 19 Early 2022"]
[White "Melaugh, Shane"]
[Black "Shirov, Alexei"]
[WhiteFideId "2509580"]
[BlackFideId "2209390"]
[WhiteElo "1972"]
[BlackElo "2678"]
[Result "0-1"]
[Round "01"]
[TimeControl "180+1"]
[Date "2022.04.19"]
[WhiteClock "0:00:17"]
[BlackClock "0:01:09"]

1. c4 {[%clk 0:03:00]}  c6 {[%clk 0:02:57]} 2. Nc3 {[%clk 0:03:00]}  d5 {[%clk 0:02:58]} 3. cxd5 {[%clk 0:03:01]}  cxd5 {[%clk 0:02:57]} 4. d4 {[%clk 0:03:02]}  Nf6 {[%clk 0:02:57]} 5. Nf3 {[%clk 0:03:03]}  Nc6 {[%clk 0:02:55]} 6. Bf4 {[%clk 0:03:00]}  a6 {[%clk 0:02:54]} 7. e3 {[%clk 0:03:00]}  Bg4 {[%clk 0:02:53]} 8. Be2 {[%clk 0:03:00]}  e6 {[%clk 0:02:51]} 9. O-O {[%clk 0:03:00]}  Bd6 {[%clk 0:02:48]} 10. Ne5 {[%clk 0:02:54]}  Bxe2 {[%clk 0:02:45]} 11. Qxe2 {[%clk 0:02:55]}  Bxe5 {[%clk 0:02:43]} 12. dxe5 {[%clk 0:02:51]}  Nd7 {[%clk 0:02:42]} 13. Qg4 {[%clk 0:02:39]}  g6 {[%clk 0:02:40]} 14. Qg3 {[%clk 0:02:29]}  O-O {[%clk 0:02:39]} 15. e4 {[%clk 0:02:26]}  d4 {[%clk 0:02:37]} 16. Ne2 {[%clk 0:02:25]}  Nc5 {[%clk 0:02:25]} 17. Qf3 {[%clk 0:02:20]}  d3 {[%clk 0:02:09]} 18. Rfd1 {[%clk 0:02:12]}  Qb6 {[%clk 0:02:04]} 19. Bh6 {[%clk 0:02:05]}  Qxb2 {[%clk 0:01:57]} 20. Nf4 {[%clk 0:01:40]}  Nxe5 {[%clk 0:01:53]} 21. Qe3 {[%clk 0:01:37]}  Rfc8 {[%clk 0:01:37]} 22. Rab1 {[%clk 0:01:19]}  Qxa2 {[%clk 0:01:32]} 23. Qd4 {[%clk 0:01:19]}  f6 {[%clk 0:01:30]} 24. Nxd3 {[%clk 0:00:37]}  Nexd3 {[%clk 0:01:22]} 25. Qxf6 {[%clk 0:00:36]}  Qxf2+ {[%clk 0:01:21]} 26. Qxf2 {[%clk 0:00:36]}  Nxf2 {[%clk 0:01:21]} 27. Kxf2 {[%clk 0:00:37]}  Nxe4+ {[%clk 0:01:21]} 28. Ke3 {[%clk 0:00:38]}  Nc3 {[%clk 0:01:21]} 29. Bf4 {[%clk 0:00:20]}  Nxd1+ {[%clk 0:01:17]} 30. Rxd1 {[%clk 0:00:21]}  Rd8 {[%clk 0:01:17]} 31. Rb1 {[%clk 0:00:21]}  b5 {[%clk 0:01:17]} 32. Rc1 {[%clk 0:00:21]}  Rac8 {[%clk 0:01:16]} 33. Ra1 {[%clk 0:00:20]}  Rc6 {[%clk 0:01:16]} 34. Be5 {[%clk 0:00:20]}  Rd5 {[%clk 0:01:15]} 35. Bb2 {[%clk 0:00:17]}  b4 {[%clk 0:01:15]} 36. g4 {[%clk 0:00:17]}  a5 {[%clk 0:01:16]} 37. Rf1 {[%clk 0:00:16]}  a4 {[%clk 0:01:15]} 38. h4 {[%clk 0:00:17]}  a3 {[%clk 0:01:15]} 39. Bf6 {[%clk 0:00:16]}  b3 {[%clk 0:01:14]} 40. h5 {[%clk 0:00:17]}  gxh5 {[%clk 0:01:10]} 41. g5 {[%clk 0:00:17]}  b2 {[%clk 0:01:09]} 0-1


[Site "https://www.chess.com"]

[Event "Titled Tuesday Blitz April 19 Early 2022"]
[White "Mika, Tomasz"]
[Black "Koelle, Tobias"]
[WhiteFideId "1132970"]
[BlackFideId "16207378"]
[WhiteElo "2116"]
[BlackElo "2541"]
[Result "1-0"]
[Round "01"]
[TimeControl "180+1"]
[Date "2022.04.19"]
[WhiteClock "0:00:34"]
[BlackClock "0:01:48"]

1. d4 {[%clk 0:03:00]}  Nf6 {[%clk 0:02:58]} 2. Nf3 {[%clk 0:03:01]}  g6 {[%clk 0:02:57]} 3. g3 {[%clk 0:03:01]}  Bg7 {[%clk 0:02:58]} 4. Bg2 {[%clk 0:03:01]}  O-O {[%clk 0:02:58]} 5. O-O {[%clk 0:03:02]}  c5 {[%clk 0:02:58]} 6. dxc5 {[%clk 0:03:01]}  Qa5 {[%clk 0:02:57]} 7. Be3 {[%clk 0:02:58]}  Ne4 {[%clk 0:02:43]} 8. c3 {[%clk 0:02:58]}  Qc7 {[%clk 0:02:40]} 9. Na3 {[%clk 0:02:48]}  a6 {[%clk 0:02:34]} 10. Qd5 {[%clk 0:02:32]}  Nf6 {[%clk 0:02:31]} 11. Qb3 {[%clk 0:02:18]}  Nc6 {[%clk 0:02:29]} 12. Nc4 {[%clk 0:02:16]}  Ng4 {[%clk 0:02:26]} 13. Bf4 {[%clk 0:02:10]}  e5 {[%clk 0:02:25]} 14. Bg5 {[%clk 0:02:03]}  h6 {[%clk 0:02:18]} 15. Bd2 {[%clk 0:01:57]}  Na5 {[%clk 0:02:16]} 16. Nxa5 {[%clk 0:01:54]}  Qxa5 {[%clk 0:02:17]} 17. h3 {[%clk 0:01:38]}  Nf6 {[%clk 0:02:17]} 18. Be3 {[%clk 0:01:14]}  Qb6 {[%clk 0:02:14]} 19. cxb6 {[%clk 0:01:13]}  d6 {[%clk 0:02:08]} 20. Rfd1 {[%clk 0:01:06]}  Be6 {[%clk 0:02:06]} 21. Qa3 {[%clk 0:01:04]}  Ne4 {[%clk 0:02:04]} 22. Nxe5 {[%clk 0:01:01]}  Nxg3 {[%clk 0:02:02]} 23. fxg3 {[%clk 0:00:59]}  dxe5 {[%clk 0:02:02]} 24. Bxb7 {[%clk 0:00:56]}  Rab8 {[%clk 0:02:03]} 25. Bg2 {[%clk 0:00:55]}  Rfe8 {[%clk 0:02:02]} 26. Qxa6 {[%clk 0:00:51]}  f5 {[%clk 0:02:00]} 27. b7 {[%clk 0:00:50]}  Kh8 {[%clk 0:01:59]} 28. Ba7 {[%clk 0:00:50]}  Rxb7 {[%clk 0:01:58]} 29. Qxb7 {[%clk 0:00:49]}  f4 {[%clk 0:01:58]} 30. Qc6 {[%clk 0:00:48]}  Bf7 {[%clk 0:01:56]} 31. Qd7 {[%clk 0:00:46]}  Kg8 {[%clk 0:01:54]} 32. Bd5 {[%clk 0:00:45]}  Rf8 {[%clk 0:01:55]} 33. Bxf7+ {[%clk 0:00:43]}  Rxf7 {[%clk 0:01:56]} 34. Qxf7+ {[%clk 0:00:43]}  Kxf7 {[%clk 0:01:56]} 35. Rd7+ {[%clk 0:00:43]}  Kf6 {[%clk 0:01:55]} 36. Rxg7 {[%clk 0:00:44]}  Kxg7 {[%clk 0:01:56]} 37. gxf4 {[%clk 0:00:44]}  exf4 {[%clk 0:01:57]} 38. c4 {[%clk 0:00:44]}  Kf6 {[%clk 0:01:57]} 39. Kf2 {[%clk 0:00:45]}  Kg5 {[%clk 0:01:58]} 40. c5 {[%clk 0:00:45]}  Kh4 {[%clk 0:01:58]} 41. c6 {[%clk 0:00:46]}  g5 {[%clk 0:01:59]} 42. c7 {[%clk 0:00:46]}  h5 {[%clk 0:02:00]} 43. c8=Q {[%clk 0:00:46]}  f3 {[%clk 0:02:00]} 44. exf3 {[%clk 0:00:43]}  g4 {[%clk 0:02:00]} 45. hxg4 {[%clk 0:00:42]}  Kg5 {[%clk 0:01:59]} 46. gxh5 {[%clk 0:00:41]}  Kf4 {[%clk 0:01:57]} 47. Bb8+ {[%clk 0:00:39]}  Kg5 {[%clk 0:01:47]} 48. Rg1+ {[%clk 0:00:37]}  Kf6 {[%clk 0:01:48]} 49. Rg6+ {[%clk 0:00:36]}  Kf7 {[%clk 0:01:48]} 50. Qd7+ {[%clk 0:00:34]}  Kf8 {[%clk 0:01:48]} 51. Bd6# {[%clk 0:00:34]} 1-0


[Site "https://www.chess.com"]

[Event "Titled Tuesday Blitz April 19 Early 2022"]
[White "Mirzoev, Azer"]
[Black "Namitbir Singh Walia"]
[WhiteFideId "13400304"]
[BlackFideId "35071068"]
[WhiteElo "2525"]
[BlackElo "1565"]
[Result "1-0"]
[Round "01"]
[TimeControl "180+1"]
[Date "2022.04.19"]
[WhiteClock "0:02:06"]
[BlackClock "0:01:05"]

1. c4 {[%clk 0:02:59]}  Nf6 {[%clk 0:02:57]} 2. Nc3 {[%clk 0:02:57]}  e6 {[%clk 0:02:57]} 3. e4 {[%clk 0:02:57]}  d5 {[%clk 0:02:49]} 4. e5 {[%clk 0:02:56]}  d4 {[%clk 0:02:40]} 5. exf6 {[%clk 0:02:55]}  dxc3 {[%clk 0:02:39]} 6. bxc3 {[%clk 0:02:56]}  Qxf6 {[%clk 0:02:38]} 7. Nf3 {[%clk 0:02:57]}  Nc6 {[%clk 0:02:36]} 8. Bd3 {[%clk 0:02:47]}  Bd6 {[%clk 0:02:32]} 9. Be4 {[%clk 0:02:42]}  Ne5 {[%clk 0:02:14]} 10. d4 {[%clk 0:02:41]}  Ng4 {[%clk 0:02:03]} 11. Bg5 {[%clk 0:02:19]}  h6 {[%clk 0:01:09]} 12. Bxf6 {[%clk 0:02:17]}  Nxf6 {[%clk 0:01:09]} 13. Bc2 {[%clk 0:02:16]}  b6 {[%clk 0:01:10]} 14. O-O {[%clk 0:02:15]}  Bb7 {[%clk 0:01:09]} 15. Ba4+ {[%clk 0:02:10]}  Ke7 {[%clk 0:01:08]} 16. Re1 {[%clk 0:02:10]}  g5 {[%clk 0:01:05]} 17. d5 {[%clk 0:02:07]}  g4 {[%clk 0:01:05]} 18. Nd4 {[%clk 0:02:06]} 1-0


[Site "https://www.chess.com"]